bitfinex-derivatives/quotes_SOLF0:USTF0_20220101
["timestamp","ask_amount","ask_price","bid_price","bid_amount"]
[1641044101458,2.66037417,172.5,172.45,5.56969801]
[1641044102359,4.11232559,172.47,172.45,5.56969801]
[1641044102757,15.00919538,172.5,172.45,5.56969801]
[1641044103359,4.11240767,172.47,172.45,5.56969801]
[1641044103959,2.66037417,172.5,172.45,5.56969801]
[1641044104560,4.11237438,172.47,172.45,5.56969801]
[1641044105461,2.66037417,172.5,172.45,4.11784295]
[1641044106361,4.11238551,172.47,172.45,4.11784295]
[1641044107162,2.66037417,172.49,172.46,4.11784295]
[1641044107763,4.618,172.5,172.46,4.11784295]
[1641044108564,4.618,172.5,172.45,5.56969801]
[1641044108565,2.66391154,172.49,172.45,5.56969801]
[1641044109265,16.9701332,172.5,172.45,5.56969801]
[1641044109465,16.9701332,172.5,172.46,4.11784295]
[1641044109970,2.66392462,172.49,172.46,4.11784295]
[1641044110869,16.9701332,172.5,172.46,4.11784295]
[1641044111673,2.66362711,172.49,172.47,4.11784295]
[1641044112371,4.618,172.5,172.47,4.11784295]
[1641044112573,29.5771,172.51,172.47,4.11784295]
[1641044112772,2.66372621,172.49,172.47,4.11784295]
[1641044113575,12.35162777,172.5,172.46,4.11784295]
[1641044114174,12.51202246,172.52,172.46,4.11784295]
[1641044114574,12.35177178,172.5,172.46,4.11784295]
[1641044115277,12.51202246,172.52,172.46,4.11784295]
[1641044115477,12.35148032,172.51,172.47,4.11784295]
[1641044116680,12.51202246,172.52,172.47,4.11784295]
[1641044117583,12.3513276,172.51,172.47,4.11784295]
[1641044118382,15.51202246,172.52,172.43,42.02296959]
[1641044118383,12.3513276,172.5,172.46,4.11784295]
[1641044119184,12.3513276,172.49,172.45,4.11784295]
[1641044119584,18.2283276,172.49,172.45,4.11784295]
[1641044119985,5.877,172.49,172.45,4.11784295]
[1641044120586,2.66377774,172.48,172.45,4.11784295]
[1641044121087,18.22948274,172.49,172.45,4.11784295]
[1641044121787,2.66403733,172.48,172.45,4.11784295]
[1641044122791,18.22948274,172.49,172.45,4.11784295]
[1641044123488,2.66404384,172.48,172.45,4.11784295]
[1641044123889,18.22948274,172.49,172.45,4.11784295]
[1641044123890,12.35248274,172.49,172.45,4.11784295]
[1641044124790,31.3223,172.51,172.45,4.11784295]
[1641044124991,4.11748291,172.46,172.45,4.11784295]
[1641044125494,15.01647595,172.5,172.45,4.11784295]
[1641044126194,4.11748787,172.46,172.45,4.11784295]
[1641044126694,15.01647595,172.5,172.45,4.11784295]
[1641044127193,4.11748208,172.46,172.45,4.11784295]
[1641044128097,15.01647595,172.5,172.45,4.11784295]
[1641044128497,4.11748123,172.46,172.45,4.11784295]
[1641044129199,15.01647595,172.5,172.45,4.11784295]
[1641044129900,4.11747494,172.46,172.45,4.11784295]
[1641044130800,15.01647595,172.5,172.45,4.11784295]
[1641044131202,4.11747539,172.46,172.45,4.11784295]
[1641044131704,12.35244872,172.49,172.45,4.11784295]
[1641044132401,12.51307201,172.5,172.45,4.11784295]
[1641044133002,12.35241899,172.49,172.45,4.11784295]
[1641044133701,12.51307201,172.5,172.45,4.11784295]
[1641044134202,12.35244729,172.49,172.45,4.11784295]
[1641044136908,12.51307201,172.5,172.45,4.11784295]
[1641044137610,12.35238898,172.49,172.45,4.11784295]
[1641044138210,12.51307201,172.5,172.45,4.11784295]
[1641044138810,12.35238947,172.49,172.45,4.11784295]
[1641044139412,4.1174618,172.46,172.45,4.11784295]
[1641044140014,15.01641264,172.5,172.45,4.11784295]
[1641044140616,4.11746689,172.46,172.45,4.11784295]
[1641044141816,15.01642249,172.5,172.45,4.11784295]
[1641044142315,4.11744829,172.46,172.45,4.11784295]
[1641044143417,12.35239526,172.5,172.44,1.45185506]
[1641044143820,4.11744726,172.46,172.45,4.11744726]
[1641044144518,4.11744726,172.46,172.44,4.45185506]
[1641044144719,12.35239526,172.5,172.44,4.45185506]
[1641044145220,4.1173365,172.46,172.45,1.45185506]
[1641044145619,12.35239526,172.5,172.45,4.45185506]
[1641044145821,12.35239526,172.5,172.48,3.0]
[1641044146020,12.35239526,172.51,172.48,3.0]
[1641044146522,12.35239526,172.51,172.49,3.0]
[1641044146922,12.35239526,172.54,172.49,4.45185506]
[1641044147422,12.35239526,172.54,172.5,27.66479]
[1641044147923,12.35239526,172.53,172.5,27.66479]
[1641044149227,12.35239526,172.54,172.5,27.66479]
[1641044151428,12.35239526,172.53,172.5,27.66479]
[1641044152526,12.35239526,172.54,172.5,27.66479]
[1641044154028,14.97665547,172.55,172.5,27.66479]
[1641044155728,12.35239526,172.54,172.5,27.66479]
[1641044156932,14.97665547,172.55,172.5,27.66479]
[1641044158229,14.97665547,172.56,172.5,27.66479]
[1641044158430,14.97665547,172.56,172.49,32.431]
[1641044160031,12.35239526,172.55,172.49,32.431]
[1641044160732,14.97665547,172.56,172.49,32.431]
[1641044162736,2.62426021,172.56,172.49,32.431]
[1641044162935,2.62426021,172.56,172.51,27.66479]
[1641044164537,2.62426021,172.57,172.51,27.66479]
[1641044165937,2.62426021,172.57,172.52,3.0]
[1641044166337,2.62426021,172.57,172.51,30.66479]
[1641044166642,2.62426021,172.57,172.51,27.66479]
[1641044167038,2.62426021,172.57,172.51,30.66479]
[1641044167238,12.35239526,172.59,172.51,30.66479]
[1641044167443,12.35239526,172.59,172.51,27.66479]
[1641044167739,12.35239526,172.59,172.51,30.66479]
[1641044168541,12.35239526,172.59,172.51,27.66479]
[1641044168940,12.35239526,172.59,172.54,27.66479]
[1641044169542,0.22999526,172.59,172.54,27.66479]
[1641044169744,0.22999526,172.59,172.57,3.0]
[1641044170143,12.34079318,172.62,172.57,3.0]
[1641044170348,2.62426021,172.67,172.6,3.0]
[1641044170543,2.62426021,172.67,172.58,3.0]
[1641044170744,2.62426021,172.67,172.59,3.0]
[1641044170944,2.62426021,172.67,172.61,27.66479]
[1641044171643,2.62426021,172.66,172.61,27.66479]
[1641044172446,2.62426021,172.65,172.61,27.66479]
[1641044172943,2.62426021,172.65,172.61,55.32958]
[1641044173144,30.4858,172.7,172.61,55.32958]
[1641044173444,30.4858,172.7,172.62,1.59527761]
[1641044174143,30.4858,172.7,172.61,55.32958]
[1641044174344,2.5064048,172.69,172.61,55.32958]
[1641044174944,2.5064048,172.69,172.64,27.66479]
[1641044175546,11.95197804,172.69,172.64,27.66479]
[1641044177547,11.95197804,172.69,172.61,27.66479]
[1641044177748,17.44097804,172.69,172.61,27.66479]
[1641044177948,5.489,172.69,172.61,27.66479]
[1641044179447,3.0,172.68,172.61,27.66479]
[1641044179950,5.489,172.69,172.61,27.66479]
[1641044181350,3.0,172.68,172.54,3.0]
[1641044181550,3.0,172.68,172.53,34.6938]
[1641044181551,5.79072326,172.67,172.53,34.6938]
[1641044181751,5.79072326,172.67,172.54,3.0]
[1641044182352,8.79072326,172.67,172.53,31.6938]
[1641044182752,3.0,172.66,172.53,31.6938]
[1641044182955,27.66479,172.65,172.54,27.66479]
[1641044183253,30.66479,172.65,172.54,27.66479]
[1641044183454,27.66479,172.65,172.54,27.66479]
[1641044184955,27.66479,172.65,172.57,27.66479]
[1641044186961,11.9650947,172.64,172.57,27.66479]
[1641044187860,2.51506236,172.64,172.57,27.66479]
[1641044188063,2.51506236,172.64,172.58,1.59979031]
[1641044188963,2.51428383,172.68,172.61,27.66479]
[1641044190163,44.53813638,172.69,172.61,27.66479]
[1641044190764,11.96176824,172.69,172.61,27.66479]
[1641044191464,44.53813638,172.69,172.61,27.66479]
[1641044192064,11.96176824,172.69,172.61,27.66479]
[1641044193065,11.96176824,172.69,172.61,55.32958]
[1641044196668,44.53813638,172.69,172.61,55.32958]
[1641044198572,44.53813638,172.69,172.57,30.7929]
[1641044198970,44.53813638,172.69,172.57,33.7929]
[1641044199170,44.53813638,172.69,172.58,1.59779039]
[1641044199369,44.53813638,172.69,172.6,27.66479]
[1641044200170,12.32629006,172.66,172.6,27.66479]
[1641044202077,15.32629006,172.66,172.57,58.45769]
[1641044202273,5.79122629,172.65,172.56,12.32629006]
[1641044202474,12.32629006,172.62,172.53,44.61819006]
[1641044203475,12.32629006,172.62,172.54,27.66479]
[1641044203676,12.32629006,172.61,172.54,29.2624787]
[1641044204577,12.32629006,172.61,172.55,1.5976887]
[1641044205179,12.32629006,172.62,172.55,1.5976887]
[1641044205780,4.10969228,172.58,172.56,4.10969228]
[1641044206481,12.32629006,172.62,172.56,4.10969228]
[1641044207281,11.96176824,172.63,172.57,4.10969228]
[1641044207282,4.10946677,172.59,172.57,4.10969228]
[1641044207481,4.10946677,172.59,172.58,27.66479]
[1641044207981,12.32629006,172.63,172.58,27.66479]
[1641044208881,14.85718322,172.64,172.6,4.1142998]
[1641044209684,12.34289939,172.64,172.6,4.1142998]
[1641044210186,2.51428383,172.67,172.6,4.1142998]
[1641044210384,12.34179945,172.65,172.61,4.1142998]
[1641044211088,44.53821721,172.69,172.61,4.1142998]
[1641044211488,44.53821721,172.69,172.64,27.66479]
[1641044211886,12.33997796,172.68,172.64,31.7790898]
[1641044212787,11.96184907,172.69,172.64,31.7790898]
[1641044212986,2.51428383,172.7,172.64,27.66479]
[1641044213791,14.79933501,172.7,172.64,27.66479]
[1641044214088,14.79933501,172.7,172.6,4.1142998]
[1641044214389,17.79933501,172.7,172.6,4.1142998]
[1641044214588,5.78988507,172.69,172.6,4.1142998]
[1641044214887,8.78988507,172.69,172.6,4.1142998]
[1641044215088,5.78988507,172.69,172.6,4.1142998]
[1641044215488,5.78988507,172.69,172.58,62.8965898]
[1641044215489,14.79933501,172.68,172.58,62.8965898]
[1641044215689,42.46412501,172.68,172.58,62.8965898]
[1641044216092,42.46412501,172.68,172.59,5.70707045]
[1641044216093,30.17907383,172.68,172.59,5.70707045]
[1641044216289,61.72617383,172.68,172.59,5.70707045]
[1641044216690,2.51428383,172.67,172.59,5.70707045]
[1641044218492,2.51428383,172.67,172.6,27.66479]
[1641044220495,2.51428383,172.67,172.65,27.66479]
[1641044220894,12.28505118,172.69,172.65,31.7790898]
[1641044221496,12.28505118,172.69,172.65,4.1142998]
[1641044224199,44.53444045,172.73,172.65,4.1142998]
[1641044224700,44.53444045,172.73,172.65,31.7790898]
[1641044224900,12.33910526,172.69,172.65,31.7790898]
[1641044225800,44.53444045,172.73,172.65,31.7790898]
[1641044226604,12.33924923,172.69,172.65,31.7790898]
[1641044226802,18.35024923,172.69,172.65,31.7790898]
[1641044227207,14.85353306,172.68,172.64,4.1142998]
[1641044228002,6.011,172.69,172.64,4.1142998]
[1641044228704,14.8535505,172.68,172.64,4.1142998]
[1641044229504,12.34007349,172.67,172.63,5.71418499]
[1641044230207,12.34097118,172.66,172.62,34.2241998]
[1641044230805,12.34097118,172.66,172.64,27.66479]
[1641044231006,2.51347701,172.68,172.64,27.66479]
[1641044231210,4.1127606,172.66,172.64,27.66479]
[1641044231708,11.95726549,172.72,172.65,1.59994054]
[1641044232312,12.33833594,172.7,172.66,4.11277865]
[1641044232908,11.95726549,172.72,172.66,4.11277865]
[1641044234613,12.33838083,172.7,172.66,4.11277865]
[1641044235215,12.33806474,172.71,172.67,4.11277865]
[1641044236123,14.85154175,172.73,172.69,4.11277865]
[1641044237922,12.33806474,172.73,172.69,4.11277865]
[1641044240325,11.95420782,172.75,172.69,4.11277865]
[1641044241025,12.33638434,172.73,172.69,4.11277865]
[1641044241626,11.95420782,172.75,172.69,4.11277865]
[1641044242226,12.33628236,172.73,172.69,4.11277865]
[1641044243027,11.95420782,172.75,172.69,4.11277865]
[1641044243729,12.33630526,172.73,172.69,4.11277865]
[1641044244531,11.95420782,172.75,172.69,4.11277865]
[1641044245037,12.33679228,172.72,172.68,5.71271919]
[1641044246233,11.95420782,172.75,172.68,5.71271919]
[1641044247032,12.33697869,172.72,172.68,5.71271919]
[1641044248332,12.33697869,172.73,172.69,4.11277865]
[1641044249536,12.33697869,172.72,172.68,5.71271919]
[1641044250037,11.95420782,172.75,172.68,5.71271919]
[1641044250839,12.33667711,172.72,172.68,5.71271919]
[1641044251437,11.95420782,172.75,172.68,5.71271919]
[1641044252239,12.33669514,172.73,172.69,4.11277865]
[1641044254444,11.95420782,172.75,172.69,4.11277865]
[1641044255144,12.3364168,172.73,172.69,4.11277865]
[1641044255947,11.95420782,172.75,172.69,4.11277865]
[1641044256645,12.33638083,172.73,172.69,4.11277865]
[1641044257547,11.95420782,172.75,172.69,4.11277865]
[1641044257846,12.33645951,172.73,172.69,4.11277865]
[1641044260351,15.33645951,172.73,172.69,4.11277865]
[1641044261152,27.66479,172.71,172.69,4.11277865]
[1641044261351,40.00124951,172.71,172.67,4.11277865]
[1641044261552,12.33645951,172.71,172.67,4.11277865]
[1641044262253,2.51347701,172.73,172.67,4.11277865]
[1641044263053,12.33789322,172.71,172.67,4.11277865]
[1641044266959,11.95420782,172.72,172.68,4.11277865]
[1641044267759,12.33760737,172.72,172.68,4.11277865]
[1641044268468,14.85108438,172.72,172.68,4.11277865]
[1641044268964,14.85108438,172.72,172.65,1.59994054]
[1641044268965,2.51347701,172.72,172.66,4.11277865]
[1641044272870,2.51347701,172.72,172.67,4.11277865]
[1641044273368,27.66479,172.73,172.67,5.71271919]
[1641044274071,2.50764504,172.72,172.67,5.71271919]
[1641044274673,27.66479,172.73,172.67,5.71271919]
[1641044274871,12.33760737,172.72,172.68,4.11277865]
[1641044275373,14.84995378,172.72,172.68,4.11277865]
[1641044275874,27.66479,172.73,172.68,4.11277865]
[1641044276173,40.00126033,172.73,172.69,4.11277865]
[1641044276774,2.51214793,172.72,172.69,4.11277865]
[1641044277473,12.33647033,172.73,172.69,4.11277865]
[1641044278072,11.95205735,172.75,172.69,5.71271919]
[1641044278874,12.33586687,172.74,172.7,4.11277865]
[1641044280274,12.33586687,172.73,172.69,5.71271919]
[1641044280776,11.95205735,172.75,172.69,5.71271919]
[1641044280976,12.33587413,172.74,172.7,4.11277865]
[1641044283476,11.95205735,172.75,172.7,4.11277865]
[1641044284379,12.33601057,172.73,172.69,5.71271919]
[1641044284876,4.11192425,172.7,172.69,5.71271919]
[1641044285777,12.33577276,172.73,172.69,5.71271919]
[1641044286480,12.33670858,172.72,172.68,4.11277865]
[1641044287078,11.95205735,172.75,172.68,4.11277865]
[1641044287279,12.33643927,172.73,172.69,4.11277865]
[1641044287882,12.33643927,172.73,172.69,5.71271919]
[1641044288380,12.33643927,172.73,172.68,31.77756865]
[1641044289182,12.33643927,172.73,172.69,3.0]
[1641044289385,12.33643927,172.73,172.68,31.77756865]
[1641044289786,12.33643927,172.74,172.68,31.77756865]
[1641044290387,12.33643927,172.74,172.69,5.71070036]
[1641044290986,12.33643927,172.74,172.68,31.77756865]
[1641044291885,12.33643927,172.75,172.68,31.77756865]
[1641044292486,30.1467,172.77,172.68,31.77756865]
[1641044292487,12.33643927,172.74,172.68,31.77756865]
[1641044293694,12.33643927,172.74,172.68,27.66479]
[1641044294294,12.33643927,172.74,172.68,31.77756865]
[1641044294995,12.33643927,172.73,172.68,27.66479]
[1641044295598,12.33643927,172.74,172.68,31.77756865]
[1641044296801,12.33643927,172.75,172.68,31.77756865]
[1641044297900,12.33643927,172.75,172.69,5.71027482]
[1641044299801,12.33643927,172.74,172.69,5.71027482]
[1641044303301,4.10819579,172.7,172.69,5.71027482]
[1641044303904,12.33643927,172.74,172.69,4.11277865]
[1641044304202,12.33643927,172.73,172.68,31.77756865]
[1641044305305,4.108326,172.7,172.68,31.77756865]
[1641044305806,4.10927171,172.69,172.68,31.77756865]
[1641044306707,12.33643927,172.73,172.68,33.37649309]
[1641044307308,4.10915322,172.7,172.69,5.71170309]
[1641044308008,12.33643927,172.74,172.69,5.71170309]
[1641044308810,4.10913138,172.7,172.69,5.71170309]
[1641044310510,12.33643927,172.73,172.68,31.77756865]
[1641044310910,4.10932673,172.69,172.68,31.77756865]
[1641044313215,12.33643927,172.73,172.68,33.37648567]
[1641044313616,12.33643927,172.73,172.68,31.77756865]
[1641044313814,4.10936342,172.69,172.68,31.77756865]
[1641044314619,12.33643927,172.73,172.68,33.37648557]
[1641044314819,12.33643927,172.73,172.68,5.71169557]
[1641044315721,4.10938106,172.69,172.68,4.11277865]
[1641044316321,12.33643927,172.73,172.68,4.11277865]
[1641044316926,4.10952019,172.69,172.68,4.11277865]
[1641044317929,12.33643927,172.72,172.67,5.71169557]
[1641044318828,4.10938225,172.69,172.67,5.71169557]
[1641044319328,19.63645034,172.72,172.67,5.71169557]
[1641044320129,4.10935257,172.69,172.68,4.11277865]
[1641044320734,4.788,172.72,172.68,4.11277865]
[1641044320931,17.12443927,172.72,172.68,4.11277865]
[1641044321632,2.5123414,172.71,172.68,4.11277865]
[1641044322933,4.11225421,172.69,172.68,4.11277865]
[1641044323335,59.34189,172.73,172.68,4.11277865]
[1641044324138,14.84905719,172.72,172.68,4.11277865]
[1641044324638,4.10975277,172.69,172.68,4.11277865]
[1641044325339,2.51071185,172.72,172.68,4.11277865]
[1641044325938,4.1097009,172.69,172.68,4.11277865]
[1641044326642,71.6711483,172.73,172.68,4.11277865]
[1641044326939,2.51067622,172.72,172.68,4.11277865]
[1641044327542,71.6711483,172.73,172.68,4.11277865]
[1641044327742,4.10968147,172.69,172.68,4.11277865]
[1641044328443,71.6711483,172.73,172.68,4.11277865]
[1641044328643,2.51065052,172.72,172.68,4.11277865]
[1641044329045,71.6711483,172.73,172.68,4.11277865]
[1641044329247,4.10962004,172.69,172.68,4.11277865]
[1641044329645,71.6711483,172.73,172.68,4.11277865]
[1641044329846,2.51059525,172.72,172.68,4.11277865]
[1641044330446,71.6711483,172.73,172.69,4.11277865]
[1641044330647,4.10948865,172.7,172.69,4.11277865]
[1641044331048,0.72168865,172.7,172.69,4.11277865]
[1641044331346,12.3292583,172.74,172.67,1.59891692]
[1641044331347,39.9940483,172.76,172.67,20.92883432]
[1641044332147,2.47929688,172.75,172.68,12.32629006]
[1641044332448,2.47929688,172.75,172.69,27.66479]
[1641044333247,27.66479,172.76,172.69,27.66479]
[1641044334047,2.4792653,172.75,172.7,1.59891692]
[1641044335348,27.66479,172.76,172.7,1.59891692]
[1641044335548,39.9940483,172.76,172.7,1.59891692]
[1641044336151,2.51142328,172.75,172.7,1.59891692]
[1641044336850,39.9940483,172.76,172.7,1.59891692]
[1641044337349,2.51138029,172.75,172.7,1.59891692]
[1641044338550,39.9940483,172.76,172.7,1.59891692]
[1641044339152,2.51122455,172.75,172.7,1.59891692]
[1641044339753,39.9940483,172.76,172.7,1.59891692]
[1641044341054,27.66479,172.76,172.7,1.59891692]
[1641044341255,2.48083468,172.75,172.7,1.59891692]
[1641044341654,44.27387963,172.77,172.7,1.59891692]
[1641044341856,44.27387963,172.77,172.7,33.33671692]
[1641044342660,14.81464088,172.76,172.71,1.59891692]
[1641044343258,59.60489,172.77,172.71,1.59891692]
[1641044343460,71.93840965,172.77,172.71,1.59891692]
[1641044344363,2.48061481,172.76,172.71,1.59891692]
[1641044344862,71.93842814,172.77,172.71,1.59891692]
[1641044345764,2.48062215,172.76,172.71,1.59891692]
[1641044346363,59.60489,172.77,172.71,1.59891692]
[1641044346563,71.93840649,172.77,172.71,1.59891692]
[1641044346967,2.48058309,172.76,172.71,1.59891692]
[1641044347965,71.93837145,172.77,172.71,1.59891692]
[1641044348565,2.4806112,172.76,172.71,1.59891692]
[1641044349165,71.93835157,172.77,172.71,1.59891692]
[1641044349969,2.48057092,172.76,172.71,1.59891692]
[1641044350875,31.9401,172.77,172.71,1.59891692]
[1641044351570,2.48074431,172.76,172.71,1.59891692]
[1641044352272,44.27343483,172.77,172.71,1.59891692]
[1641044352871,2.48064804,172.76,172.71,1.59891692]
[1641044353572,31.9401,172.77,172.71,1.59891692]
[1641044354271,2.48065546,172.76,172.71,1.59891692]
[1641044354773,31.9401,172.77,172.71,1.59891692]
[1641044355472,3.0,172.76,172.71,1.59891692]
[1641044355676,5.48056145,172.76,172.71,1.59891692]
[1641044356373,14.81576841,172.75,172.71,1.59891692]
[1641044357374,13.97918819,172.76,172.71,1.59891692]
[1641044357775,16.97918819,172.76,172.71,1.59891692]
[1641044358175,14.81585811,172.75,172.7,1.59891692]
[1641044361780,12.33478146,172.74,172.7,1.59891692]
[1641044363180,14.81585811,172.75,172.7,1.59891692]
[1641044363780,13.97918819,172.76,172.7,1.59891692]
[1641044364580,12.33509599,172.74,172.7,1.59891692]
[1641044365382,2.48119197,172.75,172.7,1.59891692]
[1641044365782,2.48119197,172.75,172.69,1.59891692]
[1641044365986,12.33525223,172.74,172.69,1.59891692]
[1641044366287,12.33525223,172.74,172.71,27.66479]
[1641044366587,2.48119197,172.75,172.71,27.66479]
[1641044367087,12.33524675,172.74,172.71,27.66479]
[1641044367786,2.48119197,172.75,172.71,27.66479]
[1641044368486,12.33522675,172.74,172.71,27.66479]
[1641044369286,2.48119197,172.75,172.71,27.66479]
[1641044369887,14.81597173,172.75,172.71,27.66479]
[1641044370386,12.33477976,172.74,172.71,27.66479]
[1641044371086,2.48119197,172.75,172.71,27.66479]
[1641044371387,2.48119197,172.75,172.68,31.2269]
[1641044371687,12.33519096,172.74,172.68,31.2269]
[1641044372289,2.48119197,172.75,172.71,27.66479]
[1641044372990,12.33524568,172.74,172.71,27.66479]
[1641044373190,12.33524568,172.74,172.68,31.2269]
[1641044374189,12.33524568,172.74,172.71,27.66479]
[1641044374695,12.33524568,172.74,172.69,1.63050163]
[1641044374892,12.33524568,172.74,172.68,31.2269]
[1641044375695,14.81643765,172.75,172.69,1.62870802]
[1641044376495,14.81643765,172.75,172.71,27.66479]
[1641044379299,2.48119197,172.76,172.72,1.62876512]
[1641044380100,12.33524568,172.76,172.71,27.66479]
[1641044380900,14.8133917,172.76,172.71,27.66479]
[1641044381301,14.8133917,172.76,172.68,58.89169]
[1641044381500,2.47814602,172.76,172.68,71.21798006]
[1641044382101,12.33524568,172.76,172.69,1.62872916]
[1641044382500,12.33524568,172.76,172.71,27.66479]
[1641044383001,2.47809715,172.76,172.71,27.66479]
[1641044384806,14.81334283,172.76,172.71,27.66479]
[1641044385407,2.47809715,172.76,172.71,27.66479]
[1641044386808,14.81334283,172.76,172.71,27.66479]
[1641044387408,14.81334283,172.76,172.72,1.63053979]
[1641044388011,14.81334283,172.76,172.71,27.66479]
[1641044388313,12.33524568,172.75,172.71,27.66479]
[1641044389112,11.83493863,172.76,172.71,27.66479]
[1641044389715,12.33428645,172.75,172.71,27.66479]
[1641044390517,14.81208867,172.76,172.72,1.6305435]
[1641044391417,2.47809715,172.76,172.73,4.11113707]
[1641044392416,44.27409152,172.77,172.73,4.11113707]
[1641044392619,12.33399152,172.76,172.72,5.74168057]
[1641044393018,31.9401,172.77,172.72,5.74168057]
[1641044393218,31.9401,172.77,172.73,4.11113707]
[1641044393219,2.48066085,172.76,172.73,4.11113707]
[1641044393719,44.27351477,172.77,172.73,4.11113707]
[1641044394319,12.33341477,172.77,172.73,4.11113707]
[1641044394620,2.48066234,172.76,172.73,4.11113707]
[1641044395823,12.33341477,172.78,172.71,31.77592707]
[1641044396425,2.47417466,172.78,172.71,31.77592707]
[1641044397125,14.80758943,172.78,172.71,27.66479]
[1641044397325,14.80758943,172.78,172.71,59.24949]
[1641044397827,2.47417466,172.78,172.71,63.36062707]
[1641044398828,5.47417466,172.78,172.71,63.36062707]
[1641044399029,2.47417466,172.78,172.71,63.36062707]
[1641044399731,14.80758943,172.78,172.71,63.36062707]
[1641044400430,5.47417466,172.78,172.71,63.36062707]
[1641044400632,2.47417466,172.78,172.71,63.36062707]
[1641044401031,2.47417466,172.78,172.72,5.73744873]
[1641044401634,2.47417466,172.78,172.73,4.11113707]
[1641044402233,3.0,172.79,172.73,4.11113707]
[1641044402731,2.47386495,172.78,172.72,5.73744873]
[1641044403735,3.0,172.79,172.72,5.73744873]
[1641044404839,2.4738883,172.78,172.72,5.73744873]
[1641044405739,3.0,172.79,172.72,5.73744873]
[1641044405939,12.33341477,172.78,172.74,4.11113707]
[1641044406742,2.48035702,172.78,172.74,4.11113707]
[1641044407540,12.3325609,172.78,172.74,4.11113707]
[1641044408242,2.4802715,172.78,172.74,4.11113707]
[1641044408746,3.0,172.79,172.74,4.11113707]
[1641044408944,12.33248191,172.78,172.74,4.11113707]
[1641044409346,12.33248191,172.78,172.72,1.62631166]
[1641044409347,3.0,172.8,172.75,4.11113707]
[1641044409546,2.48014419,172.78,172.75,4.11113707]
[1641044410051,12.33223839,172.79,172.75,4.11113707]
[1641044410348,12.33223839,172.79,172.74,4.11113707]
[1641044410349,12.33223839,172.78,172.74,4.11113707]
[1641044411149,2.48024203,172.79,172.74,4.11113707]
[1641044411751,12.33243556,172.78,172.74,4.11113707]
[1641044412854,2.48024203,172.79,172.74,4.11113707]
[1641044413252,12.33223253,172.79,172.75,4.11113707]
[1641044414555,14.81247456,172.8,172.73,4.11113707]
[1641044415458,2.48024203,172.8,172.74,4.11113707]
[1641044416056,14.81247456,172.8,172.73,4.11113707]
[1641044417060,14.81247456,172.8,172.74,27.66479]
[1641044419559,14.81247456,172.8,172.73,4.11113707]
[1641044421160,12.33223253,172.79,172.73,4.11113707]
[1641044424669,4.10359549,172.76,172.73,4.11113707]
[1641044425271,4.10359549,172.76,172.72,1.6267803]
[1641044425272,4.10891832,172.75,172.74,4.11113707]
[1641044426073,12.33223253,172.79,172.74,4.11113707]
[1641044426672,4.10887204,172.75,172.74,4.11113707]
[1641044427273,12.33223253,172.79,172.74,4.11113707]
[1641044427878,4.10887349,172.75,172.74,4.11113707]
[1641044428379,14.81247456,172.79,172.74,4.11113707]
[1641044429279,4.10892573,172.75,172.74,4.11113707]
[1641044430082,33.14503203,172.79,172.74,4.11113707]
[1641044430481,30.14503203,172.79,172.74,4.11113707]
[1641044430882,14.80720619,172.78,172.74,4.11113707]
[1641044431482,12.32696416,172.78,172.74,4.11113707]
[1641044431680,12.32758384,172.77,172.73,4.11113707]
[1641044433086,4.10917378,172.74,172.73,4.11113707]
[1641044433786,14.80685732,172.77,172.73,4.11113707]
[1641044434485,37.0238,172.78,172.73,4.11113707]
[1641044435788,14.80729717,172.77,172.73,4.11113707]
[1641044436492,49.35111138,172.78,172.74,4.11113707]
[1641044436790,17.96731138,172.78,172.74,4.11113707]
[1641044437291,17.96731138,172.78,172.73,4.11113707]
[1641044437292,14.80677833,172.77,172.73,4.11113707]
[1641044439293,14.99144504,172.78,172.73,4.11113707]
[1641044439898,2.47720627,172.77,172.72,5.73791737]
[1641044440695,17.95671628,172.78,172.72,5.73791737]
[1641044441798,2.47719674,172.77,172.72,5.73791737]
[1641044442495,12.31671628,172.77,172.71,63.36062707]
[1641044443199,14.79399666,172.77,172.72,5.73949616]
[1641044443797,14.79399666,172.77,172.71,35.69583707]
[1641044445997,2.47728038,172.77,172.72,5.73945955]
[1641044447599,44.70331628,172.78,172.72,5.73945955]
[1641044448000,12.31671628,172.78,172.72,5.73945955]
[1641044448199,2.47697943,172.77,172.73,4.11113707]
[1641044448898,12.31671628,172.79,172.73,4.11113707]
[1641044449099,14.79347426,172.8,172.74,4.11113707]
[1641044449803,14.79347426,172.8,172.76,27.66479]
[1641044450602,2.47675798,172.8,172.76,31.77592707]
[1641044452503,14.79618015,172.82,172.78,4.11113707]
[1641044454004,14.79618015,172.82,172.77,5.74180086]
[1641044454303,12.31671628,172.81,172.77,5.74180086]
[1641044454807,11.83158825,172.82,172.77,5.74180086]
[1641044455406,12.33052711,172.81,172.77,5.74180086]
[1641044456010,11.83158825,172.82,172.77,5.74180086]